[Event "*** Titled Tuesday Blitz"]
[Site "Chess.com"]
[Date "2018.09.04"]
[Round "1"]
[White "ecwinslow"]
[Black "Kouzari"]
[Result "1-0"]
[WhiteElo "2038"]
[BlackElo "2460"]
[TimeControl "180+2"]
[EndTime "13:42:09 PDT"]
[Termination "ecwinslow won on time"]

1. e4 {[%clk 0:02:56.6]} 1... c5 {[%clk 0:02:57.9]} 2. Nf3 {[%clk 0:02:56.8]}
2... e6 {[%clk 0:02:58.5]} 3. d4 {[%clk 0:02:57.6]} 3... cxd4 {[%clk 0:02:59.8]}
4. Nxd4 {[%clk 0:02:59.5]} 4... a6 {[%clk 0:02:59]} 5. Nc3 {[%clk 0:02:59.1]}
5... Qc7 {[%clk 0:02:59.7]} 6. Bd3 {[%clk 0:02:51.2]} 6... Nf6 {[%clk
0:02:59.2]} 7. Qe2 {[%clk 0:02:49.4]} 7... d6 {[%clk 0:03:00.1]} 8. Bd2 {[%clk
0:02:49]} 8... Nbd7 {[%clk 0:02:53]} 9. f4 {[%clk 0:02:48.5]} 9... b5 {[%clk
0:02:52.1]} 10. Nf3 {[%clk 0:02:37.3]} 10... Bb7 {[%clk 0:02:48.8]} 11. O-O
{[%clk 0:02:33.8]} 11... Be7 {[%clk 0:02:37.5]} 12. Rae1 {[%clk 0:02:25.2]}
12... g6 {[%clk 0:02:31.7]} 13. Kh1 {[%clk 0:02:10.5]} 13... h5 {[%clk
0:02:16.2]} 14. a3 {[%clk 0:01:57.7]} 14... h4 {[%clk 0:02:05]} 15. Ng5 {[%clk
0:01:37.5]} 15... Nh5 {[%clk 0:01:54.7]} 16. Qg4 {[%clk 0:01:09.4]} 16... Bxg5
{[%clk 0:01:36.5]} 17. Qxg5 {[%clk 0:01:03.9]} 17... h3 {[%clk 0:01:34.3]} 18.
g4 {[%clk 0:00:52.2]} 18... Nhf6 {[%clk 0:01:24.6]} 19. Kg1 {[%clk 0:00:41.1]}
19... Qc5+ {[%clk 0:01:23.8]} 20. Be3 {[%clk 0:00:41.8]} 20... Qxg5 {[%clk
0:01:23.8]} 21. fxg5 {[%clk 0:00:42.5]} 21... Nxg4 {[%clk 0:01:25.2]} 22. Bf4
{[%clk 0:00:34.5]} 22... Nge5 {[%clk 0:01:24]} 23. b4 {[%clk 0:00:33]} 1-0

[Event "*** Titled Tuesday Blitz"]
[Site "Chess.com"]
[Date "2018.09.04"]
[Round "1"]
[White "eljanov"]
[Black "b_6"]
[Result "1-0"]
[WhiteElo "2746"]
[BlackElo "2400"]
[TimeControl "180+2"]
[EndTime "13:42:10 PDT"]
[Termination "eljanov won by resignation"]

1. c4 {[%clk 0:02:58.6]} 1... e6 {[%clk 0:02:59.3]} 2. Nc3 {[%clk 0:02:58.9]}
2... d5 {[%clk 0:03:00.3]} 3. d4 {[%clk 0:02:59.9]} 3... Nf6 {[%clk 0:03:01.3]}
4. cxd5 {[%clk 0:02:57.7]} 4... Nxd5 {[%clk 0:03:02.4]} 5. e4 {[%clk 0:02:58.1]}
5... Nxc3 {[%clk 0:03:03.4]} 6. bxc3 {[%clk 0:02:59.6]} 6... c5 {[%clk 0:03:05]}
7. Nf3 {[%clk 0:03:01]} 7... cxd4 {[%clk 0:03:05.4]} 8. cxd4 {[%clk 0:03:02.2]}
8... Bb4+ {[%clk 0:03:06.9]} 9. Bd2 {[%clk 0:03:03.5]} 9... Bxd2+ {[%clk
0:03:08.4]} 10. Qxd2 {[%clk 0:03:05.4]} 10... O-O {[%clk 0:03:09.4]} 11. Bc4
{[%clk 0:03:04.6]} 11... b6 {[%clk 0:03:09.1]} 12. O-O {[%clk 0:03:04.7]} 12...
Bb7 {[%clk 0:03:10.3]} 13. d5 {[%clk 0:02:59.3]} 13... exd5 {[%clk 0:03:03.2]}
14. Bxd5 {[%clk 0:03:00.2]} 14... Bxd5 {[%clk 0:03:02.6]} 15. exd5 {[%clk
0:03:01.3]} 15... Nd7 {[%clk 0:02:48.7]} 16. d6 {[%clk 0:02:57.2]} 16... Re8
{[%clk 0:02:39.7]} 17. Rfe1 {[%clk 0:02:51.9]} 17... Nc5 {[%clk 0:02:13.2]} 18.
Qd5 {[%clk 0:02:41.3]} 18... Qd7 {[%clk 0:01:40.6]} 19. Rad1 {[%clk 0:02:20.9]}
19... Rad8 {[%clk 0:01:35]} 20. Rxe8+ {[%clk 0:02:16.7]} 20... Rxe8 {[%clk
0:00:54.1]} 21. Ne5 {[%clk 0:02:02.9]} 21... Qe6 {[%clk 0:00:54.7]} 22. Qxe6
{[%clk 0:02:02.9]} 22... fxe6 {[%clk 0:00:53.2]} 23. h4 {[%clk 0:01:39.2]} 23...
g6 {[%clk 0:00:53.6]} 24. g4 {[%clk 0:01:36.4]} 24... Kg7 {[%clk 0:00:47.7]} 25.
g5 {[%clk 0:01:33.8]} 25... Rd8 {[%clk 0:00:38.3]} 26. d7 {[%clk 0:01:31.6]}
26... Kf8 {[%clk 0:00:36.1]} 27. Kg2 {[%clk 0:01:30]} 27... a5 {[%clk
0:00:29.4]} 28. a4 {[%clk 0:01:26.2]} 28... Kg7 {[%clk 0:00:05.1]} 29. Kf3
{[%clk 0:01:26.1]} 29... Kf8 {[%clk 0:00:06]} 30. Ke3 {[%clk 0:01:24.6]} 30...
Kg7 {[%clk 0:00:07.4]} 31. Rd4 {[%clk 0:01:23.7]} 31... Kf8 {[%clk 0:00:07.5]}
32. Ke2 {[%clk 0:01:23.9]} 32... Kg7 {[%clk 0:00:08.8]} 33. Kd1 {[%clk
0:01:23.7]} 33... Kf8 {[%clk 0:00:09.2]} 34. Kc2 {[%clk 0:01:24.7]} 34... Kg7
{[%clk 0:00:09.9]} 35. Kc3 {[%clk 0:01:25.3]} 35... Kf8 {[%clk 0:00:10.3]} 36.
Kc4 {[%clk 0:01:26.2]} 36... Nxa4 {[%clk 0:00:11.5]} 37. Nc6 {[%clk 0:01:26.5]}
37... Nb2+ {[%clk 0:00:10.3]} 38. Kb5 {[%clk 0:01:27.2]} 1-0

[Event "*** Titled Tuesday Blitz"]
[Site "Chess.com"]
[Date "2018.09.04"]
[Round "1"]
[White "GMHess"]
[Black "lucasmito"]
[Result "1-0"]
[WhiteElo "2702"]
[BlackElo "2350"]
[TimeControl "180+2"]
[EndTime "13:42:11 PDT"]
[Termination "GMHess won by resignation"]

1. d4 {[%clk 0:03:01.9]} 1... Nf6 {[%clk 0:03:00.3]} 2. c4 {[%clk 0:02:53.7]}
2... g6 {[%clk 0:02:59.7]} 3. Nc3 {[%clk 0:02:53.5]} 3... d5 {[%clk 0:02:55.3]}
4. Bg5 {[%clk 0:02:53.9]} 4... Ne4 {[%clk 0:02:49.3]} 5. Bh4 {[%clk 0:02:54.8]}
5... Nxc3 {[%clk 0:02:48.8]} 6. bxc3 {[%clk 0:02:56.7]} 6... Bg7 {[%clk
0:02:47.7]} 7. e3 {[%clk 0:02:57.3]} 7... O-O {[%clk 0:02:45.7]} 8. Nf3 {[%clk
0:02:56.7]} 8... c5 {[%clk 0:02:45.2]} 9. cxd5 {[%clk 0:02:57.4]} 9... cxd4
{[%clk 0:02:42.8]} 10. cxd4 {[%clk 0:02:58.7]} 10... Qxd5 {[%clk 0:02:43.4]} 11.
Bxe7 {[%clk 0:02:49.6]} 11... Re8 {[%clk 0:02:41.6]} 12. Bh4 {[%clk 0:02:47]}
12... Nc6 {[%clk 0:02:41.9]} 13. Be2 {[%clk 0:02:47.8]} 13... Qa5+ {[%clk
0:02:36.4]} 14. Qd2 {[%clk 0:02:45.6]} 14... Qxd2+ {[%clk 0:02:37.1]} 15. Kxd2
{[%clk 0:02:44.4]} 15... Bf5 {[%clk 0:02:37.4]} 16. Bd3 {[%clk 0:02:30.9]} 16...
Bxd3 {[%clk 0:02:35.6]} 17. Kxd3 {[%clk 0:02:32.8]} 17... Rac8 {[%clk
0:02:36.9]} 18. Rab1 {[%clk 0:02:29.9]} 18... Na5 {[%clk 0:02:33.1]} 19. Rhc1
{[%clk 0:02:29.9]} 19... Bf8 {[%clk 0:02:33]} 20. Bg3 {[%clk 0:02:18.3]} 20...
b6 {[%clk 0:02:17.1]} 21. Nd2 {[%clk 0:02:13.5]} 21... Ba3 {[%clk 0:02:06]} 22.
Rxc8 {[%clk 0:02:13.9]} 22... Rxc8 {[%clk 0:02:07.9]} 23. d5 {[%clk 0:01:57.3]}
23... Kf8 {[%clk 0:01:56.6]} 24. e4 {[%clk 0:01:57.1]} 24... Ke7 {[%clk
0:01:40]} 25. e5 {[%clk 0:01:53.1]} 25... Bc5 {[%clk 0:01:23]} 26. Ne4 {[%clk
0:01:47]} 26... Ba3 {[%clk 0:01:21.3]} 27. Bh4+ {[%clk 0:01:44.3]} 27... Kf8
{[%clk 0:01:19.4]} 28. d6 {[%clk 0:01:37.7]} 28... Nb7 {[%clk 0:01:04.6]} 29.
Rb3 {[%clk 0:01:26.1]} 29... Bc5 {[%clk 0:00:53.5]} 30. Be7+ {[%clk 0:01:09]}
30... Kg7 {[%clk 0:00:51.1]} 31. d7 {[%clk 0:01:04]} 31... Ra8 {[%clk
0:00:47.8]} 32. Nxc5 {[%clk 0:01:00.3]} 32... Nxc5+ {[%clk 0:00:48.1]} 33. Bxc5
{[%clk 0:01:01.8]} 33... bxc5 {[%clk 0:00:50]} 34. Kc4 {[%clk 0:01:01.9]} 34...
Kf8 {[%clk 0:00:51.5]} 35. Kxc5 {[%clk 0:00:58.4]} 35... Ke7 {[%clk 0:00:53.4]}
36. Kc6 {[%clk 0:00:55.4]} 36... a5 {[%clk 0:00:53.5]} 37. Rd3 {[%clk
0:00:53.5]} 37... Kd8 {[%clk 0:00:50.5]} 38. Kb7 {[%clk 0:00:52.9]} 38... Ra6
{[%clk 0:00:47.9]} 1-0

[Event "*** Titled Tuesday Blitz"]
[Site "Chess.com"]
[Date "2018.09.04"]
[Round "1"]
[White "Divertissement"]
[Black "AndrewDGreen"]
[Result "1-0"]
[WhiteElo "2537"]
[BlackElo "2192"]
[TimeControl "180+2"]
[EndTime "13:42:12 PDT"]
[Termination "Divertissement won by resignation"]

1. d4 {[%clk 0:03:00.5]} 1... Nf6 {[%clk 0:02:54.9]} 2. Nf3 {[%clk 0:02:59.3]}
2... g6 {[%clk 0:02:54.4]} 3. c4 {[%clk 0:02:59.3]} 3... Bg7 {[%clk 0:02:53.2]}
4. g3 {[%clk 0:03:00.6]} 4... O-O {[%clk 0:02:52.1]} 5. Bg2 {[%clk 0:03:02.1]}
5... d6 {[%clk 0:02:53.1]} 6. O-O {[%clk 0:03:03.2]} 6... c6 {[%clk 0:02:54.1]}
7. Nc3 {[%clk 0:03:04.8]} 7... Bf5 {[%clk 0:02:54.9]} 8. Nh4 {[%clk 0:03:02.7]}
8... Be6 {[%clk 0:02:55.2]} 9. b3 {[%clk 0:02:58.2]} 9... Qd7 {[%clk 0:02:46.3]}
10. Re1 {[%clk 0:02:57.8]} 10... d5 {[%clk 0:02:46]} 11. cxd5 {[%clk 0:02:57.6]}
11... cxd5 {[%clk 0:02:47.9]} 12. Nf3 {[%clk 0:02:49.5]} 12... Nc6 {[%clk
0:02:48.4]} 13. Ne5 {[%clk 0:02:42.6]} 13... Qd8 {[%clk 0:02:41.3]} 14. Nxc6
{[%clk 0:02:43.1]} 14... bxc6 {[%clk 0:02:43.2]} 15. Ba3 {[%clk 0:02:37.6]}
15... Re8 {[%clk 0:02:43.2]} 16. Rc1 {[%clk 0:02:37.6]} 16... Nd7 {[%clk
0:02:36.4]} 17. Na4 {[%clk 0:02:35.9]} 17... Rc8 {[%clk 0:02:31.3]} 18. Qd2
{[%clk 0:02:10.4]} 18... f6 {[%clk 0:02:25.8]} 19. e4 {[%clk 0:02:09.4]} 19...
Bf7 {[%clk 0:02:25.9]} 20. Nc5 {[%clk 0:01:56.3]} 20... Nxc5 {[%clk 0:02:26.3]}
21. Bxc5 {[%clk 0:01:54.9]} 21... Qd7 {[%clk 0:02:25.2]} 22. e5 {[%clk
0:01:46.8]} 22... fxe5 {[%clk 0:02:24.9]} 23. dxe5 {[%clk 0:01:48.2]} 23... Be6
{[%clk 0:02:25.2]} 24. Qd4 {[%clk 0:01:45.8]} 24... Rc7 {[%clk 0:02:25.1]} 25.
f4 {[%clk 0:01:42.3]} 25... Bf5 {[%clk 0:02:17.9]} 26. Rc3 {[%clk 0:01:36.6]}
26... e6 {[%clk 0:02:18.7]} 27. Rec1 {[%clk 0:01:29.8]} 27... Rec8 {[%clk
0:02:15.7]} 28. h3 {[%clk 0:01:29.6]} 28... h5 {[%clk 0:02:10.8]} 29. Kh2 {[%clk
0:01:28.3]} 29... Bh6 {[%clk 0:02:03.6]} 30. h4 {[%clk 0:01:26.2]} 30... Bg4
{[%clk 0:01:58.8]} 31. b4 {[%clk 0:01:15.7]} 31... Qf7 {[%clk 0:01:56.3]} 32. a4
{[%clk 0:01:13.9]} 32... Qe8 {[%clk 0:01:47.2]} 33. Bd6 {[%clk 0:01:09.7]} 33...
Rb7 {[%clk 0:01:47.6]} 34. b5 {[%clk 0:01:09.9]} 34... Bf8 {[%clk 0:01:35.8]}
35. Rxc6 {[%clk 0:01:05.1]} 35... Rxc6 {[%clk 0:01:33.3]} 36. Rxc6 {[%clk
0:01:06.6]} 36... Bg7 {[%clk 0:01:31.2]} 37. Qc5 {[%clk 0:01:02]} 37... Rd7
{[%clk 0:01:26.6]} 38. a5 {[%clk 0:00:52.9]} 38... Kh7 {[%clk 0:01:24.7]} 39. b6
{[%clk 0:00:51.4]} 39... axb6 {[%clk 0:01:25.4]} 40. axb6 {[%clk 0:00:53.3]}
40... Rb7 {[%clk 0:01:25.9]} 41. Rc7 {[%clk 0:00:50.3]} 41... Rb8 {[%clk
0:01:26.9]} 42. Rxg7+ {[%clk 0:00:46.1]} 42... Kxg7 {[%clk 0:01:27.8]} 43. Bxb8
{[%clk 0:00:47.7]} 43... Qxb8 {[%clk 0:01:28.2]} 44. Qc7+ {[%clk 0:00:49.2]} 1-0

[Event "*** Titled Tuesday Blitz"]
[Site "Chess.com"]
[Date "2018.09.04"]
[Round "1"]
[White "josiwales"]
[Black "Genghis_K"]
[Result "0-1"]
[WhiteElo "2450"]
[BlackElo "2868"]
[TimeControl "180+2"]
[EndTime "13:42:24 PDT"]
[Termination "Genghis_K won by resignation"]

1. e4 {[%clk 0:03:00]} 1... c6 {[%clk 0:02:55]} 2. d4 {[%clk 0:03:00.8]} 2... d5
{[%clk 0:02:56]} 3. e5 {[%clk 0:03:02.3]} 3... Bf5 {[%clk 0:02:56.9]} 4. h4
{[%clk 0:03:02.9]} 4... h6 {[%clk 0:02:52.2]} 5. g4 {[%clk 0:02:58.9]} 5... Bd7
{[%clk 0:02:53.7]} 6. Bg2 {[%clk 0:02:53.5]} 6... h5 {[%clk 0:02:51.3]} 7. g5
{[%clk 0:02:52.5]} 7... Bf5 {[%clk 0:02:50.5]} 8. Ne2 {[%clk 0:02:50]} 8... e6
{[%clk 0:02:51.2]} 9. Ng3 {[%clk 0:02:51.2]} 9... Ne7 {[%clk 0:02:52.6]} 10.
Nxh5 {[%clk 0:02:45.6]} 10... Ng6 {[%clk 0:02:53.1]} 11. Ng3 {[%clk 0:02:42.4]}
11... Rxh4 {[%clk 0:02:39.6]} 12. Nxf5 {[%clk 0:02:24.2]} 12... Rxh1+ {[%clk
0:02:35]} 13. Bxh1 {[%clk 0:02:24.5]} 13... exf5 {[%clk 0:02:36.9]} 14. Qf3
{[%clk 0:02:21]} 14... Qd7 {[%clk 0:02:30.1]} 15. a3 {[%clk 0:02:07]} 15... Na6
{[%clk 0:02:24.8]} 16. Be3 {[%clk 0:02:03.2]} 16... Nc7 {[%clk 0:02:18.8]} 17.
Nd2 {[%clk 0:02:04.5]} 17... f4 {[%clk 0:02:09.1]} 18. Bxf4 {[%clk 0:02:01.2]}
18... Qf5 {[%clk 0:02:10.7]} 19. Be3 {[%clk 0:01:56.1]} 19... Qxc2 {[%clk
0:02:12.2]} 20. b4 {[%clk 0:01:39.2]} 20... Qc3 {[%clk 0:02:05.7]} 21. Qd1
{[%clk 0:01:35.5]} 21... Nb5 {[%clk 0:02:03.1]} 22. Kf1 {[%clk 0:01:05.5]} 22...
Nxd4 {[%clk 0:02:03.7]} 23. Rc1 {[%clk 0:00:58.4]} 23... Qd3+ {[%clk 0:02:00.8]}
24. Ke1 {[%clk 0:00:59.9]} 24... Nf5 {[%clk 0:02:00.4]} 25. Qa4 {[%clk
0:00:47.7]} 25... Nxe5 {[%clk 0:01:49.6]} 26. b5 {[%clk 0:00:41.2]} 26... Nxe3
{[%clk 0:01:27.4]} 27. bxc6 {[%clk 0:00:40.5]} 27... b5 {[%clk 0:01:28.8]} 28.
Qf4 {[%clk 0:00:25]} 28... N5c4 {[%clk 0:01:27.5]} 29. Nxc4 {[%clk 0:00:14.3]}
29... dxc4 {[%clk 0:01:21.2]} 30. fxe3 {[%clk 0:00:11.5]} 30... Bxa3 {[%clk
0:01:22.1]} 31. c7 {[%clk 0:00:11.5]} 31... Rc8 {[%clk 0:01:11.8]} 32. Rd1
{[%clk 0:00:12.4]} 32... Bb4+ {[%clk 0:01:09.5]} 33. Kf2 {[%clk 0:00:13.4]}
33... Qxd1 {[%clk 0:01:10.6]} 34. Bc6+ {[%clk 0:00:12.9]} 34... Kf8 {[%clk
0:01:11]} 35. Bb7 {[%clk 0:00:14.6]} 35... Qd2+ {[%clk 0:01:10.3]} 36. Kf3
{[%clk 0:00:14.9]} 36... Bd6 {[%clk 0:01:07.9]} 37. Qf5 {[%clk 0:00:14.7]} 37...
Rxc7 {[%clk 0:01:06.6]} 0-1

[Event "*** Titled Tuesday Blitz"]
[Site "Chess.com"]
[Date "2018.09.04"]
[Round "1"]
[White "lhavas"]
[Black "ElHelvetico"]
[Result "0-1"]
[WhiteElo "2319"]
[BlackElo "2655"]
[TimeControl "180+2"]
[EndTime "13:42:26 PDT"]
[Termination "ElHelvetico won by resignation"]

1. d4 {[%clk 0:03:01.9]} 1... Nf6 {[%clk 0:03:00.4]} 2. Bg5 {[%clk 0:03:02.7]}
2... d5 {[%clk 0:02:58.6]} 3. Nc3 {[%clk 0:03:02.7]} 3... c5 {[%clk 0:02:56.8]}
4. e3 {[%clk 0:02:59.7]} 4... Nc6 {[%clk 0:02:55.2]} 5. Nf3 {[%clk 0:03:00.1]}
5... Bg4 {[%clk 0:02:54.8]} 6. Be2 {[%clk 0:02:59.6]} 6... e6 {[%clk 0:02:54.9]}
7. O-O {[%clk 0:03:00.2]} 7... cxd4 {[%clk 0:02:50.7]} 8. Nxd4 {[%clk
0:02:57.4]} 8... Bxe2 {[%clk 0:02:50.1]} 9. Qxe2 {[%clk 0:02:57.6]} 9... Be7
{[%clk 0:02:43.2]} 10. Nxc6 {[%clk 0:02:55.7]} 10... bxc6 {[%clk 0:02:45.1]} 11.
Rad1 {[%clk 0:02:51.6]} 11... O-O {[%clk 0:02:34.1]} 12. Qf3 {[%clk 0:02:46.4]}
12... Qb6 {[%clk 0:02:31.4]} 13. Na4 {[%clk 0:02:43.3]} 13... Qb4 {[%clk
0:02:27.4]} 14. b3 {[%clk 0:02:43.6]} 14... h6 {[%clk 0:02:18.9]} 15. Bxf6
{[%clk 0:02:38.8]} 15... Bxf6 {[%clk 0:02:19.2]} 16. Rfe1 {[%clk 0:02:37.4]}
16... Rfd8 {[%clk 0:02:09.8]} 17. h3 {[%clk 0:02:36.5]} 17... c5 {[%clk
0:02:03.3]} 18. Qg3 {[%clk 0:02:31.3]} 18... c4 {[%clk 0:01:52.8]} 19. Qg4
{[%clk 0:02:28.5]} 19... Rac8 {[%clk 0:01:50.3]} 20. Qf4 {[%clk 0:01:51.3]}
20... a5 {[%clk 0:01:48.7]} 21. Qg4 {[%clk 0:01:50.4]} 21... cxb3 {[%clk
0:01:45.1]} 22. Qxb4 {[%clk 0:01:50.7]} 22... axb4 {[%clk 0:01:47]} 23. cxb3
{[%clk 0:01:51.9]} 23... Rc2 {[%clk 0:01:47.7]} 24. e4 {[%clk 0:01:43.4]} 24...
Rxa2 {[%clk 0:01:37.4]} 25. exd5 {[%clk 0:01:44.2]} 25... Rxd5 {[%clk
0:01:07.3]} 26. Rxd5 {[%clk 0:01:42.4]} 26... exd5 {[%clk 0:01:09.2]} 27. Rd1
{[%clk 0:01:43]} 27... Ra1 {[%clk 0:00:53.6]} 28. Rxa1 {[%clk 0:01:39.3]} 28...
Bxa1 {[%clk 0:00:55.5]} 29. Kf1 {[%clk 0:01:40.5]} 29... Bd4 {[%clk 0:00:55.6]}
30. f3 {[%clk 0:01:39.8]} 30... f5 {[%clk 0:00:53.1]} 31. Ke2 {[%clk 0:01:40.2]}
31... Kf7 {[%clk 0:00:42.6]} 32. Kd3 {[%clk 0:01:41.2]} 32... Bg1 {[%clk
0:00:40.2]} 33. Nb2 {[%clk 0:01:39.4]} 33... Ke6 {[%clk 0:00:39.2]} 34. Ke2
{[%clk 0:01:32.6]} 34... Bd4 {[%clk 0:00:38.3]} 35. Nd3 {[%clk 0:01:32.2]} 35...
Bc3 {[%clk 0:00:39.9]} 36. Nf4+ {[%clk 0:01:31.8]} 36... Ke5 {[%clk 0:00:39.9]}
37. g3 {[%clk 0:01:24.8]} 37... g5 {[%clk 0:00:37.3]} 38. Ng6+ {[%clk 0:01:18]}
38... Kf6 {[%clk 0:00:34.6]} 39. Nf8 {[%clk 0:01:17.6]} 39... Ke7 {[%clk
0:00:35.9]} 40. Ng6+ {[%clk 0:01:17.2]} 40... Kf7 {[%clk 0:00:36.5]} 0-1

[Event "*** Titled Tuesday Blitz"]
[Site "Chess.com"]
[Date "2018.09.04"]
[Round "1"]
[White "LucaBrasi1968"]
[Black "Polish_fighter3000"]
[Result "0-1"]
[WhiteElo "2456"]
[BlackElo "2911"]
[TimeControl "180+2"]
[EndTime "13:42:27 PDT"]
[Termination "Polish_fighter3000 won by resignation"]

1. d4 {[%clk 0:02:59.2]} 1... Nf6 {[%clk 0:03:00.5]} 2. Nf3 {[%clk 0:02:59.4]}
2... e6 {[%clk 0:03:02.4]} 3. Bg5 {[%clk 0:02:58.8]} 3... h6 {[%clk 0:02:57.8]}
4. Bh4 {[%clk 0:02:58.7]} 4... d5 {[%clk 0:02:51.8]} 5. e3 {[%clk 0:02:58.7]}
5... Be7 {[%clk 0:02:35.1]} 6. Bd3 {[%clk 0:02:58.6]} 6... b6 {[%clk 0:02:32]}
7. O-O {[%clk 0:02:57.2]} 7... Bb7 {[%clk 0:02:33.4]} 8. Nbd2 {[%clk 0:02:57.1]}
8... c5 {[%clk 0:02:34.4]} 9. c3 {[%clk 0:02:56.9]} 9... Nbd7 {[%clk 0:02:34.8]}
10. h3 {[%clk 0:02:57.2]} 10... O-O {[%clk 0:02:35.8]} 11. Bg3 {[%clk
0:02:57.5]} 11... a6 {[%clk 0:02:35.6]} 12. a4 {[%clk 0:02:57.2]} 12... Ne4
{[%clk 0:02:24.5]} 13. Bh2 {[%clk 0:02:55.3]} 13... f5 {[%clk 0:02:18.3]} 14.
Ne5 {[%clk 0:02:54.5]} 14... Nxe5 {[%clk 0:02:19.4]} 15. Bxe5 {[%clk 0:02:54.2]}
15... Bd6 {[%clk 0:02:12.1]} 16. Bxd6 {[%clk 0:02:54.5]} 16... Qxd6 {[%clk
0:02:14]} 17. Nf3 {[%clk 0:02:55.4]} 17... Ng5 {[%clk 0:02:08.1]} 18. Ne5 {[%clk
0:02:54.3]} 18... Nf7 {[%clk 0:02:08.9]} 19. f4 {[%clk 0:02:50.6]} 19... c4
{[%clk 0:02:08.2]} 20. Bc2 {[%clk 0:02:45.1]} 20... Nxe5 {[%clk 0:02:09.6]} 21.
fxe5 {[%clk 0:02:45.4]} 21... Qe7 {[%clk 0:02:10.5]} 22. b3 {[%clk 0:02:29.1]}
22... b5 {[%clk 0:02:10.5]} 23. axb5 {[%clk 0:02:24.9]} 23... axb5 {[%clk
0:02:12.4]} 24. b4 {[%clk 0:02:24.3]} 24... Bc6 {[%clk 0:02:11.7]} 25. Qd2
{[%clk 0:02:21.8]} 25... Rfb8 {[%clk 0:02:07.5]} 26. Qf2 {[%clk 0:02:21.8]}
26... Be8 {[%clk 0:01:54.5]} 27. Rfc1 {[%clk 0:02:21.5]} 27... Ra7 {[%clk
0:01:53.1]} 28. Bd1 {[%clk 0:02:09.8]} 28... Rba8 {[%clk 0:01:53.5]} 29. Rxa7
{[%clk 0:02:10.3]} 29... Rxa7 {[%clk 0:01:54.8]} 30. Qb2 {[%clk 0:02:11]} 30...
Qg5 {[%clk 0:01:55.1]} 31. Qf2 {[%clk 0:02:10.6]} 31... Ra3 {[%clk 0:01:56]} 32.
Qf4 {[%clk 0:02:10.1]} 32... Qe7 {[%clk 0:01:54.3]} 33. g4 {[%clk 0:02:10.4]}
33... Bg6 {[%clk 0:01:53.2]} 34. gxf5 {[%clk 0:02:09.1]} 34... Bxf5 {[%clk
0:01:55.1]} 35. Bg4 {[%clk 0:02:10]} 35... Be4 {[%clk 0:01:47.5]} 36. Bf3 {[%clk
0:02:00.9]} 36... Bd3 {[%clk 0:01:30.9]} 37. Bg4 {[%clk 0:01:57.4]} 37... Kh7
{[%clk 0:01:31.5]} 38. Qf2 {[%clk 0:01:51.5]} 38... Qg5 {[%clk 0:01:30.8]} 39.
Qf4 {[%clk 0:01:52.1]} 39... Qg6 {[%clk 0:01:30.9]} 40. Qf3 {[%clk 0:01:46.8]}
40... h5 {[%clk 0:01:29.9]} 41. Qg3 {[%clk 0:01:29]} 41... hxg4 {[%clk
0:01:21.3]} 42. hxg4 {[%clk 0:01:29]} 42... Be4 {[%clk 0:01:20]} 43. Rf1 {[%clk
0:01:26.2]} 43... Ra2 {[%clk 0:01:17.4]} 44. Rf2 {[%clk 0:01:25.8]} 44... Rxf2
{[%clk 0:01:08.9]} 45. Kxf2 {[%clk 0:01:26.2]} 45... Qf7+ {[%clk 0:01:10.3]} 46.
Kg1 {[%clk 0:01:26.8]} 46... g5 {[%clk 0:01:07.5]} 47. Qh3+ {[%clk 0:01:26.2]}
47... Kg7 {[%clk 0:01:08.6]} 48. Qg3 {[%clk 0:01:26.4]} 48... Qf3 {[%clk
0:01:07.3]} 0-1

[Event "*** Titled Tuesday Blitz"]
[Site "Chess.com"]
[Date "2018.09.04"]
[Round "1"]
[White "Mikhail_Golubev"]
[Black "Anton_Demchenko"]
[Result "0-1"]
[WhiteElo "2411"]
[BlackElo "2766"]
[TimeControl "180+2"]
[EndTime "13:42:32 PDT"]
[Termination "Anton_Demchenko won by resignation"]

1. e4 {[%clk 0:03:01.7]} 1... c5 {[%clk 0:02:59.6]} 2. Nf3 {[%clk 0:03:01.6]}
2... d6 {[%clk 0:02:59.2]} 3. d4 {[%clk 0:03:01.7]} 3... cxd4 {[%clk 0:03:00.3]}
4. Nxd4 {[%clk 0:03:02.4]} 4... Nf6 {[%clk 0:03:01.5]} 5. Nc3 {[%clk 0:03:02.8]}
5... Nc6 {[%clk 0:03:03]} 6. Bc4 {[%clk 0:03:02.2]} 6... e6 {[%clk 0:03:01.2]}
7. Be3 {[%clk 0:03:01.4]} 7... a6 {[%clk 0:03:01.9]} 8. Bb3 {[%clk 0:02:58.8]}
8... Na5 {[%clk 0:02:57.9]} 9. f4 {[%clk 0:02:55]} 9... Be7 {[%clk 0:02:44]} 10.
O-O {[%clk 0:02:38]} 10... O-O {[%clk 0:02:41.3]} 11. e5 {[%clk 0:01:53.8]}
11... Ne8 {[%clk 0:02:15.3]} 12. Qh5 {[%clk 0:01:39.1]} 12... Nxb3 {[%clk
0:02:02.4]} 13. axb3 {[%clk 0:01:37.7]} 13... f5 {[%clk 0:01:50.3]} 14. exd6
{[%clk 0:01:29.1]} 14... Bxd6 {[%clk 0:01:38.8]} 15. Rfd1 {[%clk 0:01:15.8]}
15... Qe7 {[%clk 0:01:35.3]} 16. Qf3 {[%clk 0:01:05.7]} 16... Rb8 {[%clk
0:01:34.2]} 17. Re1 {[%clk 0:00:52.1]} 17... Nf6 {[%clk 0:01:30.1]} 18. Rad1
{[%clk 0:00:48.5]} 18... Bc7 {[%clk 0:01:21.8]} 19. Kh1 {[%clk 0:00:41.8]} 19...
Qf7 {[%clk 0:01:17.5]} 20. b4 {[%clk 0:00:33.3]} 20... Bd7 {[%clk 0:01:16.6]}
21. b5 {[%clk 0:00:29.5]} 21... Ng4 {[%clk 0:01:10.6]} 22. Bg1 {[%clk
0:00:27.6]} 22... Rfc8 {[%clk 0:00:57.6]} 23. Qe2 {[%clk 0:00:26.1]} 23... Bxf4
{[%clk 0:00:53.9]} 24. Nxe6 {[%clk 0:00:24.7]} 24... Re8 {[%clk 0:00:51.3]} 25.
Nxf4 {[%clk 0:00:21.2]} 25... Rxe2 {[%clk 0:00:52.2]} 26. Rxe2 {[%clk
0:00:21.6]} 26... axb5 {[%clk 0:00:52.5]} 27. Ncd5 {[%clk 0:00:20.7]} 27... Re8
{[%clk 0:00:50.5]} 28. Rxe8+ {[%clk 0:00:20.5]} 28... Bxe8 {[%clk 0:00:48.8]}
29. h3 {[%clk 0:00:19.1]} 29... Bc6 {[%clk 0:00:45.8]} 30. hxg4 {[%clk
0:00:17.8]} 30... fxg4 {[%clk 0:00:47.2]} 31. g3 {[%clk 0:00:14.6]} 31... g5
{[%clk 0:00:47.4]} 0-1